{"text_format":"1","workbook":"xlsx","n_sheets":5,"sheets":["Modelos","Referencias","Datos","Abonos","Estado de Cuenta"],"not_rendered":{"charts":0,"images":1,"macros":1,"external_links":0,"defined_names":24,"comments":0,"pivot_tables":0},"unopened":[],"bounds":{"document_bytes":16777216,"sheet_cells":100000,"rows_first":2000,"rows_last":500,"rows_between":2000,"halvings":0,"cell_chars":16384,"cell_head_chars":4096},"cells_cut":0,"cells_raw":0,"read":"whole","date_system":"1900"}

{"sheet":"Modelos","index":0,"n_rows":27,"n_cols":26,"rows_kept":27,"cut":false,"hidden":true,"merged":[]}
["Numero","1","2","3","4","5","6","7","8","9","10","11","12","13","14","15","16","17","18","19","20","21","22","23","24","25"]
[]
[1,"BASE PIRAMIDAL AMERICANO","BASE PIRAMIDAL VINO","BASE ROLEX NEGRA","BASE ROLEX VINO","BASE LISA NEGRA","BASE LISA NOGAL","BASE POLIESTER NEGRA","BASE POLIESTER TABACO","BASE POLIESTER VINO","BASE POLIESTER AZUL","MARCO VENECIA->CHOCOLATE","MARCO CANAL->CHOCOLATE","MARCO DOBLE LISO->CHOCOLATE-BEIGE","MARCO MINIPATO->TINTO-NEGRO","MARCO MINIPATO->BARBIADO","MARCO CANAL->CHOCOLATE","MARCO CRUZADO->CHOCOLATE","MARCO DOBLE LISO->NEGRO-PLATA","MARCO DOBLE CANAL->CHOCOLATE-BEIGE","MARCO LISO->CHOCOLATE","MARCO VENECIA->CHOCOLATE ","MARCO MOLDURA CORDON->GRIS-PLATA","MARCO DOBLE CAGUAMO->TINTO-NEGRO","MARCO LISO VICELADO->NEGRO","MARCO LISO VICELADO->CEDRO"]
[2,"BASE PIRAMIDAL NEGRO",null,"BASE ROLEX NOGAL",null,"BASE LISA MARMOL VINO",null,null,null,null,"BASE POLIESTER VERDE","MARCO VENECIA->NEGRO","MARCO CANAL->NEGRO","MARCO DOBLE LISO->NEGRO-PLATA","MARCO MINIPATO->CHOCOLATE","MARCO MINIPATO->BARBIADO-NEGRO","MARCO CANAL->NEGRO","MARCO CRUZADO->NEGRO","MARCO DOBLE LISO->CHOCOLATE-BEIGE","MARCO DOBLE CANAL->NEGRO-PLATA","MARCO LISO->NEGRO","MARCO VENECIA->NEGRO","MARCO MOLDURA CORDON->HUESO","MARCO DOBLE CAGUAMO->CHOCOLATE-BEIGE","MARCO LISO VICELADO->CHOCOLATE"]
[3,null,null,null,null,null,null,null,null,null,"BASE POLIESTER GRIS","MARCO VENECIA->PLATA","MARCO CANAL->PLATA","MARCO DOBLE LISO->NEGRO-BARBIADO","MARCO MINIPATO->NEGRO","MARCO MINIPATO->OTRO","MARCO CANAL->PLATA","MARCO CRUZADO->PLATA","MARCO DOBLE LISO->SOLO CHOCOLATE","MARCO DOBLE CANAL->SOLO CHOCOLATE","MARCO LISO->PLATA","MARCO VENECIA->PLATA","MARCO MOLDURA CORDON->TINTO","MARCO DOBLE CAGUAMO->NEGRO-PLATA","MARCO LISO VICELADO->PLATA"]
[4,null,null,null,null,null,null,null,null,null,null,"MARCO VENECIA->TINTO","MARCO CANAL->TINTO","MARCO DOBLE LISO->NEGRO-TINTO","MARCO MINIPATO->OTRO",null,"MARCO CANAL->TINTO","MARCO CRUZADO->TINTO","MARCO DOBLE LISO->SOLO NEGRO","MARCO DOBLE CANAL->SOLO NEGRO","MARCO LISO->TINTO","MARCO VENECIA->TINTO","MARCO MOLDURA CORDON->CEDRO","MARCO DOBLE CAGUAMO->NEGRO-BARBIADO","MARCO LISO VICELADO->TINTO"]
[5,null,null,null,null,null,null,null,null,null,null,"MARCO VENECIA->CEDRO","MARCO CANAL->CEDRO","MARCO DOBLE LISO->CEDRO-NEGRO",null,null,"MARCO CANAL->CEDRO","MARCO CRUZADO->CEDRO","MARCO DOBLE LISO->NEGRO-BARBIADO","MARCO DOBLE CANAL->NEGRO-BARBIADO","MARCO LISO->CEDRO","MARCO VENECIA->CEDRO","MARCO MOLDURA CORDON->BARBIADO","MARCO DOBLE CAGUAMO->NEGRO-TINTO","MARCO LISO VICELADO->CEDRO"]
[6,null,null,null,null,null,null,null,null,null,null,"MARCO VENECIA->BEIGE","MARCO CANAL->BEIGE","MARCO DOBLE LISO->TINTO-NEGRO",null,null,"MARCO CANAL->BEIGE","MARCO CRUZADO->BEIGE","MARCO DOBLE LISO->NEGRO-TINTO","MARCO DOBLE CANAL->NEGRO-TINTO","MARCO LISO->BEIGE","MARCO VENECIA->BEIGE","MARCO MOLDURA CORDON->NEGRO","MARCO DOBLE CAGUAMO->CEDRO-NEGRO","MARCO LISO VICELADO->BEIGE"]
[7,null,null,null,null,null,null,null,null,null,null,"MARCO VENECIA->BARBIADO","MARCO CANAL->BARBIADO","MARCO DOBLE LISO->SOLO CHOCOLATE",null,null,"MARCO CANAL->BARBIADO","MARCO CRUZADO->BARBIADO","MARCO DOBLE LISO->CEDRO-NEGRO","MARCO DOBLE CANAL->CEDRO-NEGRO","MARCO LISO->BARBIADO","MARCO VENECIA->BARBIADO","MARCO MOLDURA CORDON->CHOCOLATE","MARCO DOBLE CAGUAMO->SOLO CHOCOLATE","MARCO LISO VICELADO->BARBIADO"]
[8,null,null,null,null,null,null,null,null,null,null,"MARCO VENECIA->OTRO","MARCO CANAL->OTRO","MARCO DOBLE LISO->SOLO NEGRO",null,null,"MARCO CANAL->OTRO","MARCO CRUZADO->OTRO","MARCO DOBLE LISO->TINTO-NEGRO","MARCO DOBLE CANAL->TINTO-NEGRO","MARCO LISO->OTRO","MARCO VENECIA->CHOCOLATE-BEIGE","MARCO MOLDURA CORDON->PLATA","MARCO DOBLE CAGUAMO->SOLO NEGRO","MARCO LISO VICELADO->OTRO"]
[9,null,null,null,null,null,null,null,null,null,null,null,null,"MARCO DOBLE LISO->OTRO",null,null,null,null,"MARCO DOBLE LISO->OTRO","MARCO DOBLE CANAL->OTRO",null,"MARCO VENECIA->NEGRO-PLATA","MARCO MOLDURA CORDON->OTRO","MARCO DOBLE CAGUAMO->SOLO PLATA"]
[10,null,null,null,null,null,null,null,null,null,null,null,null,null,null,null,null,null,null,null,null,"MARCO VENECIA->NEGRO-BARBIADO",null,"MARCO DOBLE CAGUAMO->OTRO"]
[11,null,null,null,null,null,null,null,null,null,null,null,null,null,null,null,null,null,null,null,null,"MARCO VENECIA->OTRO"]
[12]
[13]
[14]
[15]
[16]
[17]
[18]
[19]
[20]
[21]
[22]
[23]
[24]
[25]

{"sheet":"Referencias","index":1,"n_rows":37,"n_cols":32,"rows_kept":37,"cut":false,"hidden":true,"merged":[]}
["Tipo_Contrato",null,"Tipo_Paquete","Costo_Paquete",null,"Escuela",null,"Carrera",null,"Foto_Opcion",null,"Placa_Fondo",null,"Grabado",null,"Placas_Grab",null,"Textos_Claves",null,"Dedicatoria",null,"Ani_Tamaño",null,"Ani_Metal",null,"Medida",null,"Si/No",null,"Forma_Pago",null,"Turno"]
["Grupal",null,"Paquete #1",5890,null,"Universidad Autónoma de Sinaloa",null,"Odontología",null,"Placa c/Datos",null,"Dorado",null,"P. Diamante",null,"C. Bronce",null,"BN1",null,"A Mis Padres",null,"Chico",null,"Oro",null,3,null,"Si",null,"Semanal",null,"Matutino"]
["Individual",null,"Paquete #2",3150,null,"Universidad de Occidente",null,"Derecho",null,"Foto Individual",null,"Plateado",null,"Lasser",null,"C. Negra",null,"BN2",null,"A Mis Padres Y Hermanos",null,"Mediano",null,"Plata",null,3.5,null,"No",null,"Quincenal",null,"Vespertino"]
[null,null,"Paquete #3",2090,null,null,null,"Administración",null,null,null,null,null,null,null,"C. Plata",null,"BN3",null,"A Mis Padres Y Familiares",null,"Grande",null,"Otro",null,4,null,null,null,"Mensual",null,"Nocturno"]
[null,null,"Otro","Ingresar Costo",null,null,null,"Contabilidad",null,null,null,null,null,null,null,"Negra",null,"BN4",null,"A Mi Madre",null,"Especial",null,null,null,4.5,null,null,null,"Bimestral",null,"Mixto"]
[null,null,null,null,null,null,null,"Economía",null,null,null,null,null,null,null,"M. Rojo",null,"BN5",null,"A Mi Padre",null,null,null,null,null,5,null,null,null,"2 Pagos",null,"Sabatino"]
[null,null,null,null,null,null,null,"Arquitectura",null,null,null,null,null,null,null,"M. Azul",null,"BN6",null,"A Mis Padres Y Abuelos",null,null,null,null,null,5.5,null,null,null,"Contado",null,"Otros"]
[null,null,null,null,null,null,null,"Informática",null,null,null,null,null,null,null,"M. Gris",null,"BN7",null,"A Mi Esposo E Hijos",null,null,null,null,null,6,null,null,null,"Especial"]
[null,null,null,null,null,null,null,"Mercadotecnia",null,null,null,null,null,null,null,"Roca",null,"BN8",null,"A Mi Esposo",null,null,null,null,null,6.5]
[null,null,null,null,null,null,null,"Psicología",null,null,null,null,null,null,null,"M. Verde",null,"A1",null,"A Mi Esposa",null,null,null,null,null,7]
[null,null,null,null,null,null,null,"Ing. Industrial",null,null,null,null,null,null,null,null,null,"A2",null,"A Mis Hijos",null,null,null,null,null,7.5]
[null,null,null,null,null,null,null,null,null,null,null,null,null,null,null,null,null,"A3",null,"A Mis Hermanos",null,null,null,null,null,8]
[null,null,null,null,null,null,null,null,null,null,null,null,null,null,null,null,null,"A4",null,"A Mis Tios",null,null,null,null,null,8.5]
[null,null,null,null,null,null,null,null,null,null,null,null,null,null,null,null,null,"A5",null,"A Mis Abuelos",null,null,null,null,null,9]
[null,null,null,null,null,null,null,null,null,null,null,null,null,null,null,null,null,"A6",null,"A Mi Abuela",null,null,null,null,null,9.5]
[null,null,null,null,null,null,null,null,null,null,null,null,null,null,null,null,null,"A7",null,"A Mi Abuelo",null,null,null,null,null,10]
[null,null,null,null,null,null,null,null,null,null,null,null,null,null,null,null,null,"A8",null,null,null,null,null,null,null,10.5]
[null,null,null,null,null,null,null,null,null,null,null,null,null,null,null,null,null,"A9",null,null,null,null,null,null,null,11]
[null,null,null,null,null,null,null,null,null,null,null,null,null,null,null,null,null,"A10",null,null,null,null,null,null,null,11.5]
[null,null,null,null,null,null,null,null,null,null,null,null,null,null,null,null,null,"A11",null,null,null,null,null,null,null,12]
[null,null,null,null,null,null,null,null,null,null,null,null,null,null,null,null,null,"A12"]
[null,null,null,null,null,null,null,null,null,null,null,null,null,null,null,null,null,"A13"]
[null,null,null,null,null,null,null,null,null,null,null,null,null,null,null,null,null,"A14"]
[null,null,null,null,null,null,null,null,null,null,null,null,null,null,null,null,null,"A15"]
[null,null,null,null,null,null,null,null,null,null,null,null,null,null,null,null,null,"A16"]
[null,null,null,null,null,null,null,null,null,null,null,null,null,null,null,null,null,"A17"]
[null,null,null,null,null,null,null,null,null,null,null,null,null,null,null,null,null,"A18"]
[null,null,null,null,null,null,null,null,null,null,null,null,null,null,null,null,null,"A19"]
[null,null,null,null,null,null,null,null,null,null,null,null,null,null,null,null,null,"A20"]
[null,null,null,null,null,null,null,null,null,null,null,null,null,null,null,null,null,"A21"]
[null,null,null,null,null,null,null,null,null,null,null,null,null,null,null,null,null,"A22"]
[null,null,null,null,null,null,null,null,null,null,null,null,null,null,null,null,null,"A23"]
[null,null,null,null,null,null,null,null,null,null,null,null,null,null,null,null,null,"A24"]
[null,null,null,null,null,null,null,null,null,null,null,null,null,null,null,null,null,"A25"]
[null,null,null,null,null,null,null,null,null,null,null,null,null,null,null,null,null,"A26"]
[null,null,null,null,null,null,null,null,null,null,null,null,null,null,null,null,null,"A27"]
[null,null,null,null,null,null,null,null,null,null,null,null,null,null,null,null,null,"A28"]

{"sheet":"Datos","index":2,"n_rows":6,"n_cols":47,"rows_kept":6,"cut":false,"hidden":false,"merged":[]}
["Folio","Nombre","Fec_Contrato","Asesor","Tipo_Contrato","Tipo_Paquete","Costo_Paquete","Forma_Pago","Escuela_Facultad","Carrera","Grupo","Turno","Generación","Calle_Num","Colonia","Población","Tel_Fijo","Tel_Movil","Tel_Otro","Foto_Num","Foto_Modelo","Foto_Opcion","Foto_PdeF","Foto_Grab","Agr_Num","Agr_Modelo","Agr_Placa","Agr_PdeF","Agr_Texto","Agr_Dedic","Agr_Grab","Dip_Num","Dip_Modelo","Dip_Placa","Dip_PdeF","Dip_Grab","Ani_Tamaño","Ani_Metal","Ani_Medida","Ani_Tinta","Ani_Platino","Ani_Num","Ani_Modelo","Art_Extra","¿Cuál?","¿Complemento?","Compl_Otros"]
[1212,"MARIO ALEJANDRO NAVARRETE RENDON","2012-06-15","RENE",null,"Paquete #2",{"$f":"IF(F2=\"\",\"\",VLOOKUP([Tipo_Paquete],Paquete[],2,0))","v":3150},"Mensual","Universidad de Occidente","Derecho",15,"Vespertino","2007-2012","doncel 2421","los olicos","culiacan","7500206","6672200354","6617911784",12,"caguamo grande con 3 colores","Foto Individual","Plateado","Lasser",12,"caguamo grande con 3 colores","Negra","Plateado","BN3","A Mis Padres Y Familiares","P. Diamante",59,"caguamo grande con 3 colores","C. Plata","Plateado","P. Diamante","Chico","Plata",4,"Si","No",14,8888,"Si","muchas cosas diferentes","Si","un dvd con todo el historial de las fotos"]
[334,"MARCIAL",null,null,null,"Paquete #3",{"$f":"IF(F3=\"\",\"\",VLOOKUP([Tipo_Paquete],Paquete[],2,0))","v":2090},"Quincenal"]
[5444,"MARIANA",null,null,null,"Paquete #2",{"$f":"IF(F4=\"\",\"\",VLOOKUP([Tipo_Paquete],Paquete[],2,0))","v":3150},"Bimestral"]
[12,"ASDFASFD","1906-05-30","234DASD","Grupal","Paquete #1",{"$f":"IF(F5=\"\",\"\",VLOOKUP([Tipo_Paquete],Paquete[],2,0))","v":5890},"Semanal","Universidad Autónoma de Sinaloa","Odontología",null,"Matutino",1234,"SADFSAFCXVBCXVB","SARGD BCVBXCVB","ASFDBVZXBVCZSV","DFBXCVBCXVB",243134651,321332,16,"MARCO CANAL->NEGRO","Placa c/Datos","Dorado","P. Diamante",18,"MARCO DOBLE LISO->CHOCOLATE-BEIGE","C. Bronce","Dorado","BN1","A Mis Padres","P. Diamante",1,"BASE PIRAMIDAL NEGRO","C. Bronce","Dorado","P. Diamante","Chico","Oro",3,"Si","Si",2,"BASE PIRAMIDAL VINO","Si","QFSADFASDFSAD","Si","DFADSASDADSADS"]
[111,"RAFAEL URREA SANDOVAL","2012-12-07","CARLOS","Grupal","Paquete #1",{"$f":"IF(F6=\"\",\"\",VLOOKUP([Tipo_Paquete],Paquete[],2,0))","v":5890},"Semanal","Universidad Autónoma de Sinaloa","Odontología","98-30 CARLOS","Matutino","2001-2012","AASOASOAOSOASO","LAKKLJSDFUSADFJKSDF","ÑSAPOSIDFPSDMFSADF",656464321634,546541233,341654645,7,"BASE POLIESTER NEGRA","Placa c/Datos","Dorado","P. Diamante",15,"MARCO MINIPATO->BARBIADO","C. Bronce","Dorado","BN1","A Mis Padres","P. Diamante",1,"BASE PIRAMIDAL AMERICANO","C. Bronce","Dorado","P. Diamante","Chico","Oro",3,"Si","Si",1,"BASE PIRAMIDAL AMERICANO","Si","ASDFASDFSADF","Si","ASDFASUIDFYHSAJFSADF"]

{"sheet":"Abonos","index":3,"n_rows":8,"n_cols":48,"rows_kept":8,"cut":false,"hidden":false,"merged":[]}
["Folio2","Nombre2","Folio","Nombre","Paquete","Costo_Paquete","Forma_Pago","Costo_Paquete2","Abonado","Resta","Anticipo","Bonificacion","Abono1","Fecha1","Recibo1","Abono2","Fecha2","Recibo2","Abono3","Fecha3","Recibo3","Abono4","Fecha4","Recibo4","Abono5","Fecha5","Recibo5","Abono6","Fecha6","Recibo6","Abono7","Fecha7","Recibo7","Abono8","Fecha8","Recibo8","Abono9","Fecha9","Recibo9","Abono10","Fecha10","Recibo10","Abono11","Fecha11","Recibo11","Abono12","Fecha12","Recibo12"]
[{"$f":"IFERROR(Tabla1[Folio],\"\")","v":1212},{"$f":"IF(Tabla18[[#This Row],[Folio2]]<>\"\",VLOOKUP(Tabla18[[#This Row],[Folio2]],Tabla1[[Folio]:[Forma_Pago]],2,0),\"\")","v":"MARIO ALEJANDRO NAVARRETE RENDON"},1212,"MARIO ALEJANDRO NAVARRETE RENDON",{"$f":"IF(Tabla18[[#This Row],[Folio2]]<>\"\",VLOOKUP(Tabla18[[#This Row],[Folio2]],Tabla1[[Folio]:[Forma_Pago]],6,0),\"\")","v":"Paquete #2"},{"$f":"IF(Tabla18[[#This Row],[Folio2]]<>\"\",VLOOKUP(Tabla18[[#This Row],[Folio2]],Tabla1[[Folio]:[Forma_Pago]],7,0),\"\")","v":3150},{"$f":"IF(Tabla18[[#This Row],[Folio2]]<>\"\",VLOOKUP(Tabla18[[#This Row],[Folio2]],Tabla1[[Folio]:[Forma_Pago]],8,0),\"\")","v":"Mensual"},{"$f":"IF(Tabla18[[#This Row],[Folio2]]<>\"\",VLOOKUP(Tabla18[[#This Row],[Folio2]],Tabla1[[Folio]:[Forma_Pago]],7,0),\"\")","v":3150},{"$f":"IF(Tabla18[[#This Row],[Anticipo]]=\"\",\"\",SUM(K2,L2,M2,P2,S2,V2,Y2,AB2,AE2,AH2,AK2,AN2,AQ2,AT2))","v":2400},{"$f":"IF(Tabla18[[#This Row],[Abonado]]=\"\",Tabla18[[#This Row],[Costo_Paquete2]],Tabla18[[#This Row],[Costo_Paquete2]]-Tabla18[[#This Row],[Abonado]])","v":750},500,100,150,"2012-02-15","N522",150,"2012-02-15","N529",150,"2012-02-15","N530",150,"2012-02-15","N533",150,"2012-02-15","N536",150,"2012-02-15","N539",150,"2012-02-15","N542",150,"2012-02-15","N545",150,"2012-02-15","N548",150,"2012-02-15","N551",150,"2012-02-15","N554",150,"2012-02-15","N527"]
[{"$f":"IFERROR(Tabla1[Folio],\"\")","v":334},{"$f":"IF(Tabla18[[#This Row],[Folio2]]<>\"\",VLOOKUP(Tabla18[[#This Row],[Folio2]],Tabla1[[Folio]:[Forma_Pago]],2,0),\"\")","v":"MARCIAL"},334,"MARCIAL",{"$f":"IF(Tabla18[[#This Row],[Folio2]]<>\"\",VLOOKUP(Tabla18[[#This Row],[Folio2]],Tabla1[[Folio]:[Forma_Pago]],6,0),\"\")","v":"Paquete #3"},{"$f":"IF(Tabla18[[#This Row],[Folio2]]<>\"\",VLOOKUP(Tabla18[[#This Row],[Folio2]],Tabla1[[Folio]:[Forma_Pago]],7,0),\"\")","v":2090},{"$f":"IF(Tabla18[[#This Row],[Folio2]]<>\"\",VLOOKUP(Tabla18[[#This Row],[Folio2]],Tabla1[[Folio]:[Forma_Pago]],8,0),\"\")","v":"Quincenal"},{"$f":"IF(Tabla18[[#This Row],[Folio2]]<>\"\",VLOOKUP(Tabla18[[#This Row],[Folio2]],Tabla1[[Folio]:[Forma_Pago]],7,0),\"\")","v":2090},{"$f":"IF(Tabla18[[#This Row],[Anticipo]]=\"\",\"\",SUM(K3,L3,M3,P3,S3,V3,Y3,AB3,AE3,AH3,AK3,AN3,AQ3,AT3))","v":1650},{"$f":"IF(Tabla18[[#This Row],[Abonado]]=\"\",Tabla18[[#This Row],[Costo_Paquete2]],Tabla18[[#This Row],[Costo_Paquete2]]-Tabla18[[#This Row],[Abonado]])","v":440},500,100,null,null,null,null,null,null,null,null,null,null,null,null,null,null,null,150,"2012-02-15","N540",150,"2012-02-15","N543",150,"2012-02-15","N546",150,"2012-02-15","N549",150,"2012-02-15","N552",150,"2012-02-15","N555",150,"2012-02-15","N526"]
[{"$f":"IFERROR(Tabla1[Folio],\"\")","v":5444},{"$f":"IF(Tabla18[[#This Row],[Folio2]]<>\"\",VLOOKUP(Tabla18[[#This Row],[Folio2]],Tabla1[[Folio]:[Forma_Pago]],2,0),\"\")","v":"MARIANA"},5444,"MARIANA",{"$f":"IF(Tabla18[[#This Row],[Folio2]]<>\"\",VLOOKUP(Tabla18[[#This Row],[Folio2]],Tabla1[[Folio]:[Forma_Pago]],6,0),\"\")","v":"Paquete #2"},{"$f":"IF(Tabla18[[#This Row],[Folio2]]<>\"\",VLOOKUP(Tabla18[[#This Row],[Folio2]],Tabla1[[Folio]:[Forma_Pago]],7,0),\"\")","v":3150},{"$f":"IF(Tabla18[[#This Row],[Folio2]]<>\"\",VLOOKUP(Tabla18[[#This Row],[Folio2]],Tabla1[[Folio]:[Forma_Pago]],8,0),\"\")","v":"Bimestral"},{"$f":"IF(Tabla18[[#This Row],[Folio2]]<>\"\",VLOOKUP(Tabla18[[#This Row],[Folio2]],Tabla1[[Folio]:[Forma_Pago]],7,0),\"\")","v":3150},{"$f":"IF(Tabla18[[#This Row],[Anticipo]]=\"\",\"\",SUM(K4,L4,M4,P4,S4,V4,Y4,AB4,AE4,AH4,AK4,AN4,AQ4,AT4))","v":2400},{"$f":"IF(Tabla18[[#This Row],[Abonado]]=\"\",Tabla18[[#This Row],[Costo_Paquete2]],Tabla18[[#This Row],[Costo_Paquete2]]-Tabla18[[#This Row],[Abonado]])","v":750},500,100,150,"2012-02-15","N524",150,"2012-02-15","N528",150,"2012-02-15","N532",150,"2012-02-15","N535",150,"2012-02-15","N538",150,"2012-02-15","N541",150,"2012-02-15","N544",150,"2012-02-15","N547",150,"2012-02-15","N550",150,"2012-02-15","N553",150,"2012-02-15","N531",150,"2012-02-15","N525"]
[{"$f":"IFERROR(Tabla1[Folio],\"\")","v":12},{"$f":"IF(Tabla18[[#This Row],[Folio2]]<>\"\",VLOOKUP(Tabla18[[#This Row],[Folio2]],Tabla1[[Folio]:[Forma_Pago]],2,0),\"\")","v":"ASDFASFD"},12,"ASDFASFD",{"$f":"IF(Tabla18[[#This Row],[Folio2]]<>\"\",VLOOKUP(Tabla18[[#This Row],[Folio2]],Tabla1[[Folio]:[Forma_Pago]],6,0),\"\")","v":"Paquete #1"},{"$f":"IF(Tabla18[[#This Row],[Folio2]]<>\"\",VLOOKUP(Tabla18[[#This Row],[Folio2]],Tabla1[[Folio]:[Forma_Pago]],7,0),\"\")","v":5890},{"$f":"IF(Tabla18[[#This Row],[Folio2]]<>\"\",VLOOKUP(Tabla18[[#This Row],[Folio2]],Tabla1[[Folio]:[Forma_Pago]],8,0),\"\")","v":"Semanal"},{"$f":"IF(Tabla18[[#This Row],[Folio2]]<>\"\",VLOOKUP(Tabla18[[#This Row],[Folio2]],Tabla1[[Folio]:[Forma_Pago]],7,0),\"\")","v":5890},{"$f":"IF(Tabla18[[#This Row],[Anticipo]]=\"\",\"\",SUM(K5,L5,M5,P5,S5,V5,Y5,AB5,AE5,AH5,AK5,AN5,AQ5,AT5))","v":600},{"$f":"IF(Tabla18[[#This Row],[Abonado]]=\"\",Tabla18[[#This Row],[Costo_Paquete2]],Tabla18[[#This Row],[Costo_Paquete2]]-Tabla18[[#This Row],[Abonado]])","v":5290},500,100]
[{"$f":"IFERROR(Tabla1[Folio],\"\")","v":111},{"$f":"IF(Tabla18[[#This Row],[Folio2]]<>\"\",VLOOKUP(Tabla18[[#This Row],[Folio2]],Tabla1[[Folio]:[Forma_Pago]],2,0),\"\")","v":"RAFAEL URREA SANDOVAL"},111,"RAFAEL URREA SANDOVAL",{"$f":"IF(Tabla18[[#This Row],[Folio2]]<>\"\",VLOOKUP(Tabla18[[#This Row],[Folio2]],Tabla1[[Folio]:[Forma_Pago]],6,0),\"\")","v":"Paquete #1"},{"$f":"IF(Tabla18[[#This Row],[Folio2]]<>\"\",VLOOKUP(Tabla18[[#This Row],[Folio2]],Tabla1[[Folio]:[Forma_Pago]],7,0),\"\")","v":5890},{"$f":"IF(Tabla18[[#This Row],[Folio2]]<>\"\",VLOOKUP(Tabla18[[#This Row],[Folio2]],Tabla1[[Folio]:[Forma_Pago]],8,0),\"\")","v":"Semanal"},{"$f":"IF(Tabla18[[#This Row],[Folio2]]<>\"\",VLOOKUP(Tabla18[[#This Row],[Folio2]],Tabla1[[Folio]:[Forma_Pago]],7,0),\"\")","v":5890},{"$f":"IF(Tabla18[[#This Row],[Anticipo]]=\"\",\"\",SUM(K6,L6,M6,P6,S6,V6,Y6,AB6,AE6,AH6,AK6,AN6,AQ6,AT6))","v":1100},{"$f":"IF(Tabla18[[#This Row],[Abonado]]=\"\",Tabla18[[#This Row],[Costo_Paquete2]],Tabla18[[#This Row],[Costo_Paquete2]]-Tabla18[[#This Row],[Abonado]])","v":4790},500,100,500,"2012-08-15","N523"]
[{"$f":"IFERROR(Tabla1[Folio],\"\")","v":""},{"$f":"IF(Tabla18[[#This Row],[Folio2]]<>\"\",VLOOKUP(Tabla18[[#This Row],[Folio2]],Tabla1[[Folio]:[Forma_Pago]],2,0),\"\")","v":""},"","",{"$f":"IF(Tabla18[[#This Row],[Folio2]]<>\"\",VLOOKUP(Tabla18[[#This Row],[Folio2]],Tabla1[[Folio]:[Forma_Pago]],6,0),\"\")","v":""},{"$f":"IF(Tabla18[[#This Row],[Folio2]]<>\"\",VLOOKUP(Tabla18[[#This Row],[Folio2]],Tabla1[[Folio]:[Forma_Pago]],7,0),\"\")","v":""},{"$f":"IF(Tabla18[[#This Row],[Folio2]]<>\"\",VLOOKUP(Tabla18[[#This Row],[Folio2]],Tabla1[[Folio]:[Forma_Pago]],8,0),\"\")","v":""},{"$f":"IF(Tabla18[[#This Row],[Folio2]]<>\"\",VLOOKUP(Tabla18[[#This Row],[Folio2]],Tabla1[[Folio]:[Forma_Pago]],7,0),\"\")","v":""},{"$f":"IF(Tabla18[[#This Row],[Anticipo]]=\"\",\"\",SUM(K7,L7,M7,P7,S7,V7,Y7,AB7,AE7,AH7,AK7,AN7,AQ7,AT7))","v":""},{"$f":"IF(Tabla18[[#This Row],[Abonado]]=\"\",Tabla18[[#This Row],[Costo_Paquete2]],Tabla18[[#This Row],[Costo_Paquete2]]-Tabla18[[#This Row],[Abonado]])","v":""}]
["Total",null,null,null,null,null,null,{"$f":"SUBTOTAL(109,[Costo_Paquete2])","v":20170},{"$f":"SUBTOTAL(109,[Abonado])","v":8150},{"$f":"SUBTOTAL(109,[Resta])","v":12020},{"$f":"SUBTOTAL(109,[Anticipo])","v":2500},{"$f":"SUBTOTAL(109,[Bonificacion])","v":500},{"$f":"SUBTOTAL(109,[Abono1])","v":800}]

{"sheet":"Estado de Cuenta","index":4,"n_rows":99,"n_cols":28,"rows_kept":99,"cut":false,"hidden":false,"merged":[[59,21,60,23],[59,17,60,20],[68,21,72,28],[66,21,67,23],[68,17,72,20],[66,17,67,20],[61,11,62,13],[63,11,64,13],[65,11,66,13],[67,11,68,13],[69,11,70,13],[71,11,72,13],[8,26,9,29],[5,23,5,25],[6,23,6,25],[5,26,5,29],[6,26,6,29],[23,0,24,5],[65,4,66,6],[67,4,68,6],[25,0,29,1],[33,0,37,1],[48,0,49,5],[35,14,37,16],[35,17,37,19],[33,20,34,23],[35,20,37,26],[33,2,37,10],[33,14,34,16],[7,26,7,29],[41,22,42,25],[43,22,46,26],[41,17,42,20],[50,14,51,16],[52,14,54,16],[52,17,54,19],[1,25,2,29],[18,23,19,26],[20,8,21,9],[20,10,21,13],[25,22,26,25],[27,22,29,26],[0,12,6,21],[7,23,7,25],[20,2,21,7],[20,19,21,20],[20,21,21,24],[7,0,7,4],[18,19,19,21],[18,0,19,1],[18,2,19,12],[18,13,19,14],[18,15,19,18],[11,0,13,12],[4,26,4,29],[6,0,6,4],[7,10,7,14],[20,0,21,1],[8,23,9,25],[14,0,15,12],[35,27,37,29],[25,17,26,20],[50,27,51,28],[52,27,54,28],[52,22,54,24],[50,22,51,24],[31,0,32,5],[25,2,29,10],[25,11,26,13],[33,27,34,29],[43,11,46,14],[43,17,46,21],[39,0,40,5],[41,11,42,13],[41,0,46,1],[41,2,46,10],[33,17,34,19],[33,11,34,13],[35,11,37,13],[50,17,51,19],[27,11,29,15],[27,17,29,20],[50,0,54,1],[98,16,99,24],[87,1,88,3],[87,4,88,6],[87,7,88,10],[98,5,99,13],[69,7,70,10],[85,4,86,6],[81,1,82,3],[83,1,84,3],[85,1,86,3],[81,11,82,13],[83,11,84,13],[85,11,86,13],[87,11,88,13],[73,11,74,13],[75,11,76,13],[77,11,78,13],[79,11,80,13],[81,4,82,6],[83,4,84,6],[71,1,72,3],[81,7,82,10],[83,7,84,10],[85,7,86,10],[77,1,78,3],[79,1,80,3],[79,4,80,6],[77,7,78,10],[79,7,80,10],[77,4,78,6],[73,7,74,10],[75,7,76,10],[73,1,74,3],[57,17,58,22],[50,2,54,10],[50,11,51,13],[52,11,54,13],[71,4,72,6],[71,7,72,10],[73,4,74,6],[75,4,76,6],[75,1,76,3],[63,1,64,3],[65,1,66,3],[67,1,68,3],[69,1,70,3],[61,1,62,3],[61,4,62,6],[63,4,64,6],[65,7,66,10],[67,7,68,10],[69,4,70,6],[61,7,62,10],[57,1,59,13],[63,7,64,10],[61,21,65,28],[61,17,65,20]]}
[null,null,null,null,null,null,null,null,null,null,null,null,"ESTADO DE CUENTA       RAFAEL BUELNA No. 534-B OTE                                           COL. CENTRO, CULIACÁN, SIN. C.P. 80000                                                                      R.F.C. CEFG990807MV4                                                      TEL. 275-93-67"]
[]
[]
[null,null,null,null,null,null,null,null,null,null,null,null,null,null,null,null,null,null,null,null,null,null,null,"."]
[null,null,null,null,null,null,null,null,null,null,null,null,null,null,null,null,null,null,null,null,null,null,null,"Total:",null,null,{"$f":"IF($Z$2=\"\",\"\",(VLOOKUP($Z$2,Abonos,6,FALSE)))","v":""}]
[null,null,null,null,null,null,null,null,null,null,null,null,null,null,null,null,null,null,null,null,null,null,null,"Anticipo:",null,null,{"$f":"IF($Z$2=\"\",\"\",(VLOOKUP($Z$2,Abonos,11,FALSE)))","v":""}]
[null,null,null,null,null,null,null,null,null,null,null,null,null,null,null,null,null,null,null,null,null,null,null,"Bonificacion:",null,null,{"$f":"IF($Z$2=\"\",\"\",(VLOOKUP($Z$2,Abonos,12,FALSE)))","v":""}]
[{"$f":"IF($Z$2=\"\",\"\",(VLOOKUP($Z$2,Tabla1[],3,FALSE)))","v":""},null,null,null,null,null,null,null,null,null,{"$f":"IF($Z$2=\"\",\"\",(VLOOKUP($Z$2,Tabla1[],6,FALSE)))","v":""},null,null,null,null,null,null,null,null,null,null,null,null,"Abonos:",null,null,{"$f":"IF($Z$2=\"\",\"\",(VLOOKUP($Z$2,Abonos,9,FALSE)))","v":""}]
[null,null,null,null,null,null,null,null,null,null,null,null,null,null,null,null,null,null,null,null,null,null,null,"Saldo:",null,null,{"$f":"IF($Z$2=\"\",\"\",(VLOOKUP($Z$2,Abonos,10,FALSE)))","v":""}]
[]
[]
[{"$f":"IF($Z$2=\"\",\"Favor de Ingresar Folio del Cliente\",(VLOOKUP($Z$2,Tabla1[],2,FALSE)))","v":"Favor de Ingresar Folio del Cliente"}]
[]
[]
["NOMBRE COMPLETO"]
[]
[]
[]
[" Escuela:",null,{"$f":"IF($Z$2=\"\",\"\",(VLOOKUP($Z$2,Tabla1[],9,FALSE)))","v":""},null,null,null,null,null,null,null,null,null,null,"Grupo:",null,{"$f":"IF($Z$2=\"\",\"\",(VLOOKUP($Z$2,Tabla1[],11,FALSE)))","v":""},null,null,null,"Generacion:",null,null,null,{"$f":"IF($Z$2=\"\",\"\",(VLOOKUP($Z$2,Tabla1[],13,FALSE)))","v":""}]
[]
[" Carrera:",null,{"$f":"IF($Z$2=\"\",\"\",(VLOOKUP($Z$2,Tabla1[],10,FALSE)))","v":""},null,null,null,null,null,"Turno:",null,{"$f":"IF($Z$2=\"\",\"\",(VLOOKUP($Z$2,Tabla1[],12,FALSE)))","v":""},null,null,null,null,null,null,null,null,"Asesor:",null,{"$f":"IF($Z$2=\"\",\"\",(VLOOKUP($Z$2,Tabla1[],4,FALSE)))","v":""}]
[]
[]
["FOTO"]
[]
[{"$f":"IF($Z$2=\"\",\"\",(VLOOKUP($Z$2,Tabla1[],20,FALSE)))","v":""},null,{"$f":"IF($Z$2=\"\",\"\",(VLOOKUP($Z$2,Tabla1[],21,FALSE)))","v":""},null,null,null,null,null,null,null,null,"OPCIÓN:",null,null,null,null,null,"P. DE FONDO:",null,null,null,null,"GRABADO:"]
[]
[null,null,null,null,null,null,null,null,null,null,null,{"$f":"IF($Z$2=\"\",\"\",(VLOOKUP($Z$2,Tabla1[],22,FALSE)))","v":""},null,null,null,null,null,{"$f":"IF($Z$2=\"\",\"\",(VLOOKUP($Z$2,Tabla1[],23,FALSE)))","v":""},null,null,null,null,{"$f":"IF($Z$2=\"\",\"\",(VLOOKUP($Z$2,Tabla1[],23,FALSE)))","v":""}]
[]
[]
[]
["AGRADECIMIENTO"]
[]
[{"$f":"IF($Z$2=\"\",\"\",(VLOOKUP($Z$2,Tabla1[],25,FALSE)))","v":""},null,{"$f":"IF($Z$2=\"\",\"\",(VLOOKUP($Z$2,Tabla1[],26,FALSE)))","v":""},null,null,null,null,null,null,null,null,"PLACA:",null,null,"P. DE FONDO:",null,null,"TEXTO:",null,null,"DEDICATORIA:",null,null,null,null,null,null,"GRABADO:"]
[]
[null,null,null,null,null,null,null,null,null,null,null,{"$f":"IF($Z$2=\"\",\"\",(VLOOKUP($Z$2,Tabla1[],27,FALSE)))","v":""},null,null,{"$f":"IF($Z$2=\"\",\"\",(VLOOKUP($Z$2,Tabla1[],28,FALSE)))","v":""},null,null,{"$f":"IF($Z$2=\"\",\"\",(VLOOKUP($Z$2,Tabla1[],29,FALSE)))","v":""},null,null,{"$f":"IF($Z$2=\"\",\"\",(VLOOKUP($Z$2,Tabla1[],30,FALSE)))","v":""},null,null,null,null,null,null,{"$f":"IF($Z$2=\"\",\"\",(VLOOKUP($Z$2,Tabla1[],31,FALSE)))","v":""}]
[]
[]
[]
["DIPLOMA"]
[]
[{"$f":"IF($Z$2=\"\",\"\",(VLOOKUP($Z$2,Tabla1[],32,FALSE)))","v":""},null,{"$f":"IF($Z$2=\"\",\"\",(VLOOKUP($Z$2,Tabla1[],33,FALSE)))","v":""},null,null,null,null,null,null,null,null,"PLACA:",null,null,null,null,null,"P. DE FONDO:",null,null,null,null,"GRABADO:"]
[]
[null,null,null,null,null,null,null,null,null,null,null,{"$f":"IF($Z$2=\"\",\"\",(VLOOKUP($Z$2,Tabla1[],34,FALSE)))","v":""},null,null,null,null,null,{"$f":"IF($Z$2=\"\",\"\",(VLOOKUP($Z$2,Tabla1[],35,FALSE)))","v":""},null,null,null,null,{"$f":"IF($Z$2=\"\",\"\",(VLOOKUP($Z$2,Tabla1[],36,FALSE)))","v":""}]
[]
[]
[]
[]
["ANILLO"]
[]
[{"$f":"IF($Z$2=\"\",\"\",(VLOOKUP($Z$2,Tabla1[],42,FALSE)))","v":""},null,{"$f":"IF($Z$2=\"\",\"\",(VLOOKUP($Z$2,Tabla1[],43,FALSE)))","v":""},null,null,null,null,null,null,null,null,"TAMAÑO:",null,null,"METAL:",null,null,"MEDIDA:",null,null,null,null,"TINTA:",null,null,null,null,"PLATINO:"]
[]
[null,null,null,null,null,null,null,null,null,null,null,{"$f":"IF($Z$2=\"\",\"\",(VLOOKUP($Z$2,Tabla1[],37,FALSE)))","v":""},null,null,{"$f":"IF($Z$2=\"\",\"\",(VLOOKUP($Z$2,Tabla1[],38,FALSE)))","v":""},null,null,{"$f":"IF($Z$2=\"\",\"\",(VLOOKUP($Z$2,Tabla1[],39,FALSE)))","v":""},null,null,null,null,{"$f":"IF($Z$2=\"\",\"\",(VLOOKUP($Z$2,Tabla1[],40,FALSE)))","v":""},null,null,null,null,{"$f":"IF($Z$2=\"\",\"\",(VLOOKUP($Z$2,Tabla1[],41,FALSE)))","v":""}]
[]
[]
[]
[]
[null,"Detalle de Abonos",null,null,null,null,null,null,null,null,null,null,null,null,null,null,null,"EXTRAS"]
[]
[null,null,null,null,null,null,null,null,null,null,null,null,null,null,null,null,null,"ART. EXTRA",null,null,null,"¿CUÁL?"]
[]
[null,"Concepto",null,null,"Monto",null,null,"Fecha",null,null,null,"Recibo",null,null,null,null,null,{"$f":"IF($Z$2=\"\",\"\",(VLOOKUP($Z$2,Tabla1[],44,FALSE)))","v":""},null,null,null,{"$f":"IF($Z$2=\"\",\"\",(VLOOKUP($Z$2,Tabla1[],45,FALSE)))","v":""}]
[]
[null,"Abono 1",null,null,{"$f":"IF(IF($Z$2=\"\",\"\",(VLOOKUP($Z$2,Tabla18[],13,FALSE)))=\"\",\"\",(VLOOKUP($Z$2,Tabla18[],13,FALSE)))","v":""},null,null,{"$f":"IF(IF($Z$2=\"\",\"\",(VLOOKUP($Z$2,Tabla18[],14,FALSE)))=\"\",\"\",(VLOOKUP($Z$2,Tabla18[],14,FALSE)))","v":""},null,null,null,{"$f":"IF(IF($Z$2=\"\",\"\",(VLOOKUP($Z$2,Tabla18[],15,FALSE)))=\"\",\"\",(VLOOKUP($Z$2,Tabla18[],15,FALSE)))","v":""}]
[]
[null,"Abono 2",null,null,{"$f":"IF(IF($Z$2=\"\",\"\",(VLOOKUP($Z$2,Tabla18[],16,FALSE)))=\"\",\"\",(VLOOKUP($Z$2,Tabla18[],16,FALSE)))","v":""},null,null,{"$f":"IF(IF($Z$2=\"\",\"\",(VLOOKUP($Z$2,Tabla18[],17,FALSE)))=\"\",\"\",(VLOOKUP($Z$2,Tabla18[],17,FALSE)))","v":""},null,null,null,{"$f":"IF(IF($Z$2=\"\",\"\",(VLOOKUP($Z$2,Tabla18[],18,FALSE)))=\"\",\"\",(VLOOKUP($Z$2,Tabla18[],18,FALSE)))","v":""}]
[null,null,null,null,null,null,null,null,null,null,null,null,null,null,null,null,null,"COMPLEMENTO",null,null,null,"¿CUÁL?"]
[null,"Abono 3",null,null,{"$f":"IF(IF($Z$2=\"\",\"\",(VLOOKUP($Z$2,Tabla18[],19,FALSE)))=\"\",\"\",(VLOOKUP($Z$2,Tabla18[],19,FALSE)))","v":""},null,null,{"$f":"IF(IF($Z$2=\"\",\"\",(VLOOKUP($Z$2,Tabla18[],20,FALSE)))=\"\",\"\",(VLOOKUP($Z$2,Tabla18[],20,FALSE)))","v":""},null,null,null,{"$f":"IF(IF($Z$2=\"\",\"\",(VLOOKUP($Z$2,Tabla18[],21,FALSE)))=\"\",\"\",(VLOOKUP($Z$2,Tabla18[],21,FALSE)))","v":""}]
[null,null,null,null,null,null,null,null,null,null,null,null,null,null,null,null,null,{"$f":"IF($Z$2=\"\",\"\",(VLOOKUP($Z$2,Tabla1[],46,FALSE)))","v":""},null,null,null,{"$f":"IF($Z$2=\"\",\"\",(VLOOKUP($Z$2,Tabla1[],47,FALSE)))","v":""}]
[null,"Abono 4",null,null,{"$f":"IF(IF($Z$2=\"\",\"\",(VLOOKUP($Z$2,Tabla18[],22,FALSE)))=\"\",\"\",(VLOOKUP($Z$2,Tabla18[],22,FALSE)))","v":""},null,null,{"$f":"IF(IF($Z$2=\"\",\"\",(VLOOKUP($Z$2,Tabla18[],23,FALSE)))=\"\",\"\",(VLOOKUP($Z$2,Tabla18[],23,FALSE)))","v":""},null,null,null,{"$f":"IF(IF($Z$2=\"\",\"\",(VLOOKUP($Z$2,Tabla18[],24,FALSE)))=\"\",\"\",(VLOOKUP($Z$2,Tabla18[],24,FALSE)))","v":""}]
[]
[null,"Abono 5",null,null,{"$f":"IF(IF($Z$2=\"\",\"\",(VLOOKUP($Z$2,Tabla18[],25,FALSE)))=\"\",\"\",(VLOOKUP($Z$2,Tabla18[],25,FALSE)))","v":""},null,null,{"$f":"IF(IF($Z$2=\"\",\"\",(VLOOKUP($Z$2,Tabla18[],26,FALSE)))=\"\",\"\",(VLOOKUP($Z$2,Tabla18[],26,FALSE)))","v":""},null,null,null,{"$f":"IF(IF($Z$2=\"\",\"\",(VLOOKUP($Z$2,Tabla18[],27,FALSE)))=\"\",\"\",(VLOOKUP($Z$2,Tabla18[],27,FALSE)))","v":""}]
[]
[null,"Abono 6",null,null,{"$f":"IF(IF($Z$2=\"\",\"\",(VLOOKUP($Z$2,Tabla18[],28,FALSE)))=\"\",\"\",(VLOOKUP($Z$2,Tabla18[],28,FALSE)))","v":""},null,null,{"$f":"IF(IF($Z$2=\"\",\"\",(VLOOKUP($Z$2,Tabla18[],29,FALSE)))=\"\",\"\",(VLOOKUP($Z$2,Tabla18[],29,FALSE)))","v":""},null,null,null,{"$f":"IF(IF($Z$2=\"\",\"\",(VLOOKUP($Z$2,Tabla18[],30,FALSE)))=\"\",\"\",(VLOOKUP($Z$2,Tabla18[],30,FALSE)))","v":""}]
[]
[null,"Abono 7",null,null,{"$f":"IF(IF($Z$2=\"\",\"\",(VLOOKUP($Z$2,Tabla18[],31,FALSE)))=\"\",\"\",(VLOOKUP($Z$2,Tabla18[],31,FALSE)))","v":""},null,null,{"$f":"IF(IF($Z$2=\"\",\"\",(VLOOKUP($Z$2,Tabla18[],32,FALSE)))=\"\",\"\",(VLOOKUP($Z$2,Tabla18[],32,FALSE)))","v":""},null,null,null,{"$f":"IF(IF($Z$2=\"\",\"\",(VLOOKUP($Z$2,Tabla18[],33,FALSE)))=\"\",\"\",(VLOOKUP($Z$2,Tabla18[],33,FALSE)))","v":""}]
[]
[null,"Abono 8",null,null,{"$f":"IF(IF($Z$2=\"\",\"\",(VLOOKUP($Z$2,Tabla18[],34,FALSE)))=\"\",\"\",(VLOOKUP($Z$2,Tabla18[],34,FALSE)))","v":""},null,null,{"$f":"IF(IF($Z$2=\"\",\"\",(VLOOKUP($Z$2,Tabla18[],35,FALSE)))=\"\",\"\",(VLOOKUP($Z$2,Tabla18[],35,FALSE)))","v":""},null,null,null,{"$f":"IF(IF($Z$2=\"\",\"\",(VLOOKUP($Z$2,Tabla18[],36,FALSE)))=\"\",\"\",(VLOOKUP($Z$2,Tabla18[],36,FALSE)))","v":""}]
[]
[null,"Abono 9",null,null,{"$f":"IF(IF($Z$2=\"\",\"\",(VLOOKUP($Z$2,Tabla18[],37,FALSE)))=\"\",\"\",(VLOOKUP($Z$2,Tabla18[],37,FALSE)))","v":""},null,null,{"$f":"IF(IF($Z$2=\"\",\"\",(VLOOKUP($Z$2,Tabla18[],38,FALSE)))=\"\",\"\",(VLOOKUP($Z$2,Tabla18[],38,FALSE)))","v":""},null,null,null,{"$f":"IF(IF($Z$2=\"\",\"\",(VLOOKUP($Z$2,Tabla18[],39,FALSE)))=\"\",\"\",(VLOOKUP($Z$2,Tabla18[],39,FALSE)))","v":""}]
[]
[null,"Abono 10",null,null,{"$f":"IF(IF($Z$2=\"\",\"\",(VLOOKUP($Z$2,Tabla18[],40,FALSE)))=\"\",\"\",(VLOOKUP($Z$2,Tabla18[],40,FALSE)))","v":""},null,null,{"$f":"IF(IF($Z$2=\"\",\"\",(VLOOKUP($Z$2,Tabla18[],41,FALSE)))=\"\",\"\",(VLOOKUP($Z$2,Tabla18[],41,FALSE)))","v":""},null,null,null,{"$f":"IF(IF($Z$2=\"\",\"\",(VLOOKUP($Z$2,Tabla18[],42,FALSE)))=\"\",\"\",(VLOOKUP($Z$2,Tabla18[],42,FALSE)))","v":""}]
[]
[null,"Abono 11",null,null,{"$f":"IF(IF($Z$2=\"\",\"\",(VLOOKUP($Z$2,Tabla18[],43,FALSE)))=\"\",\"\",(VLOOKUP($Z$2,Tabla18[],43,FALSE)))","v":""},null,null,{"$f":"IF(IF($Z$2=\"\",\"\",(VLOOKUP($Z$2,Tabla18[],44,FALSE)))=\"\",\"\",(VLOOKUP($Z$2,Tabla18[],44,FALSE)))","v":""},null,null,null,{"$f":"IF(IF($Z$2=\"\",\"\",(VLOOKUP($Z$2,Tabla18[],45,FALSE)))=\"\",\"\",(VLOOKUP($Z$2,Tabla18[],45,FALSE)))","v":""}]
[]
[null,"Abono 12",null,null,{"$f":"IF(IF($Z$2=\"\",\"\",(VLOOKUP($Z$2,Tabla18[],46,FALSE)))=\"\",\"\",(VLOOKUP($Z$2,Tabla18[],46,FALSE)))","v":""},null,null,{"$f":"IF(IF($Z$2=\"\",\"\",(VLOOKUP($Z$2,Tabla18[],47,FALSE)))=\"\",\"\",(VLOOKUP($Z$2,Tabla18[],47,FALSE)))","v":""},null,null,null,{"$f":"IF(IF($Z$2=\"\",\"\",(VLOOKUP($Z$2,Tabla18[],48,FALSE)))=\"\",\"\",(VLOOKUP($Z$2,Tabla18[],48,FALSE)))","v":""}]
[]
[null,"TOTAL",null,null,{"$f":"IF($Z$2=\"\",\"\",(SUM(E64:G87)))","v":""},null,null,{"$f":"IF($Z$2=\"\",\"\",(TODAY()))","v":""}]
[]
[]
[]
[]
[]
[]
[]
[]
[]
[]
[null,null,null,null,null,"FIRMA DEL CLIENTE",null,null,null,null,null,null,null,null,null,null,"EJECUTIVO DE VENTAS INNOVA"]